[Event "41st Jacques-Lemans-Open 2022"]
[Site "St. Veit/Glan"]
[Date "2022.07.16"]
[Round "9.17"]
[White "Dotzer, Lukas"]
[Black "Holzleithner, Johannes"]
[Result "1-0"]
[ECO "C07"]
[WhiteElo "2269"]
[BlackElo "2022"]
[Annotator "ChessBase"]
[PlyCount "207"]
[EventDate "2022.07.09"]
[EventType "swiss"]
[EventCountry "AUT"]
[SourceTitle "playchess.com"]
[Source "ChessBase"]
[SourceQuality "1"]
[TimeControl "40/5400+30:1800+30"]

1. e4 {[%emt 0:00:02]} e6 {[%emt 0:00:11]} 2. d4 {[%emt 0:00:07]} d5 {[%emt 0:00:04]} 3. Nd2 {[%emt 0:00:08]} c5 {[%emt 0:00:33]} 4. exd5 {[%emt 0:00:10]} Qxd5 {[%emt 0:00:07]} 5. Ngf3 {[%emt 0:00:06]} cxd4 {[%emt 0:00:05]} 6. Bc4 {[%emt 0:00:07]} Qd6 {[%emt 0:00:06]} 7. O-O {[%emt 0:00:16]} Nf6 {[%emt 0:00:04]} 8. Nb3 {[%emt 0:00:31]} Nc6 {[%emt 0:00:12]} 9. Nbxd4 {[%emt 0:00:13]} Nxd4 {[%emt 0:00:36]} 10. Nxd4 {[%emt 0:00:09]} Be7 {[%emt 0:00:02]} 11. Nb5 {[%emt 0:03:03]} Qc6 {[%emt 0:00:02]} 12. Qe2 {[%emt 0:01:21]} O-O {[%emt 0:00:11]} 13. Bf4 {[%emt 0:06:43]} a6 {[%emt 0:01:58]} 14. Nd4 {[%emt 0:00:58]} Qc5 {[%emt 0:00:05]} 15. Nb3 {[%emt 0:10:43]} Qc6 {[%emt 0:00:13]} 16. a4 {[%emt 0:02:16]} Bd6 {[%emt 0:00:13]} 17. Bxd6 {[%emt 0:05:07]} Qxd6 {[%emt 0:00:33]} 18. Rad1 {[%emt 0:02:35]} Qc7 {[%emt 0:04:07]} 19. g4 {[%emt 0:07:55]} e5 {[%emt 0:12:29]} 20. g5 {[%emt 0:00:26]} Bg4 {[%emt 0:22:29]} 21. f3 {[%emt 0:00:45]} Bh3 {[%emt 0:00:11]} 22. gxf6 {[%emt 0:00:50]} Rfc8 {[%emt 0:06:22]} 23. Bd3 {[%emt 0:02:21]} Bxf1 {[%emt 0:00:34]} 24. Kxf1 {[%emt 0:00:22]} gxf6 {[%emt 0:07:25]} 25. Qe4 {[%emt 0:01:24]} Kf8 {[%emt 0:00:20]} 26. Qxh7 {[%emt 0:00:12]} Ke7 {[%emt 0:00:01]} 27. Qe4 {[%emt 0:07:48]} Qb6 {[%emt 0:04:39]} 28. f4 {[%emt 0:02:21]} Rg8 {[%emt 0:01:13]} 29. Nc5 {[%emt 0:01:00]} Rg4 {[%emt 0:01:52]} 30. a5 {[%emt 0:06:33]} Qxb2 {[%emt 0:03:07]} 31. Re1 {[%emt 0:07:43]} Rag8 {[%emt 0:03:28]} 32. Kf2 {[%emt 0:11:34]} Rg2+ {[%emt 0:01:56]} 33. Kf3 {[%emt 0:00:25]} Rxh2 {[%emt 0:03:45]} 34. fxe5 {[%emt 0:01:13]} Rh3+ {[%emt 0:00:15]} 35. Kf2 {[%emt 0:00:17]} Rh2+ {[%emt 0:03:07]} 36. Kf1 {[%emt 0:00:29]} f5 {[%emt 0:04:51]} 37. Qd5 {[%emt 0:02:24]} Rd8 {[%emt 0:06:35]} 38. Qxb7+ {[%emt 0:03:38]} Qxb7 {[%emt 0:00:05]} 39. Nxb7 {[%emt 0:00:08]} Rd5 {[%emt 0:04:30]} 40. Re2 {[%emt 0:05:53]} Rxe2 {[%emt 0:02:10]} 41. Bxe2 {[%emt 0:30:09]} Kd7 {[%emt 0:32:34]} 42. Bxa6 {[%emt 0:01:22]} Rxe5 {[%emt 0:04:16]} 43. Bd3 {[%emt 0:01:11]} Kc7 {[%emt 0:00:35]} 44. a6 {[%emt 0:00:13]} Rd5 {[%emt 0:00:00]} 45. Ke2 {[%emt 0:00:00]} Kb6 {[%emt 0:00:00]} 46. Kd2 {[%emt 0:00:00]} f4 {[%emt 0:00:00]} 47. c4 {[%emt 0:00:00]} Re5 {[%emt 0:00:00]} 48. c5+ {[%emt 0:00:00]} Kc7 {[%emt 0:00:00]} 49. Be2 {[%emt 0:00:00]} Re3 {[%emt 0:00:00]} 50. Nd6 {[%emt 0:00:00]} Kc6 {[%emt 0:00:00]} 51. a7 {[%emt 0:00:00]} Ra3 {[%emt 0:00:00]} 52. Bf3+ {[%emt 0:00:00]} Kxc5 {[%emt 0:00:00]} 53. Nc8 {[%emt 0:00:00]} Ra2+ {[%emt 0:00:00]} 54. Kd3 {[%emt 0:00:00]} Ra3+ {[%emt 0:00:00]} 55. Ke2 {[%emt 0:00:00]} Ra2+ {[%emt 0:00:00]} 56. Kf1 {[%emt 0:00:00]} Ra1+ {[%emt 0:00:00]} 57. Kg2 {[%emt 0:00:00]} Ra2+ {[%emt 0:00:00]} 58. Kh3 {[%emt 0:00:00]} Kd4 {[%emt 0:00:16]} 59. a8=Q {[%emt 0:00:00]} Rxa8 {[%emt 0:00:02]} 60. Bxa8 {[%emt 0:00:00]} Ke3 {[%emt 0:00:02]} 61. Kg2 {[%emt 0:00:00]} f6 {[%emt 0:01:10]} 62. Bf3 {[%emt 0:00:00]} Kd2 {[%emt 0:00:58]} 63. Nd6 {[%emt 0:00:00]} Ke3 {[%emt 0:00:02]} 64. Nf5+ {[%emt 0:00:00]} Kd2 {[%emt 0:00:20]} 65. Kf2 {[%emt 0:00:00]} Kd3 {[%emt 0:00:08]} 66. Ke1 {[%emt 0:00:00]} Kc2 {[%emt 0:00:11]} 67. Ke2 {[%emt 0:00:00]} Kc3 {[%emt 0:00:27]} 68. Be4 {[%emt 0:00:00]} Kc4 {[%emt 0:00:18]} 69. Kd2 {[%emt 0:00:00]} Kb4 {[%emt 0:01:51]} 70. Kd3 {[%emt 0:00:00]} Kb3 {[%emt 0:00:19]} 71. Kd4 {[%emt 0:00:00]} Kb2 {[%emt 0:00:24]} 72. Kc4 {[%emt 0:00:00]} Kc1 {[%emt 0:00:32]} 73. Kc3 {[%emt 0:00:00]} Kd1 {[%emt 0:00:02]} 74. Bf3+ {[%emt 0:00:00]} Ke1 {[%emt 0:00:52]} 75. Kd3 {[%emt 0:01:15]} Kf2 {[%emt 0:00:02]} 76. Be4 {[%emt 0:01:14]} Ke1 {[%emt 0:00:12]} 77. Bf3 {[%emt 0:00:44]} Kf2 {[%emt 0:00:02]} 78. Ke4 {[%emt 0:00:06]} Ke1 {[%emt 0:00:07]} 79. Kxf4 {[%emt 0:00:09]} Kd2 {[%emt 0:00:09]} 80. Ke4 {[%emt 0:00:09]} Kc3 {[%emt 0:00:04]} 81. Be2 {[%emt 0:00:10]} Kd2 {[%emt 0:00:17]} 82. Bd3 {[%emt 0:00:46]} Kc3 {[%emt 0:00:02]} 83. Ke3 {[%emt 0:00:09]} Kb4 {[%emt 0:00:46]} 84. Kd4 {[%emt 0:00:15]} Kb3 {[%emt 0:00:01]} 85. Be2 {[%emt 0:00:18]} Kb2 {[%emt 0:00:55]} 86. Kc4 {[%emt 0:00:28]} Kc2 {[%emt 0:00:39]} 87. Bd3+ {[%emt 0:00:45]} Kb2 {[%emt 0:00:24]} 88. Kb4 {[%emt 0:00:39]} Ka1 {[%emt 0:00:50]} 89. Nd4 {[%emt 0:00:06]} Kb2 {[%emt 0:00:02]} 90. Bf5 {[%emt 0:00:13]} Ka1 {[%emt 0:00:58]} 91. Kc3 {[%emt 0:00:37]} Ka2 {[%emt 0:00:26]} 92. Bc2 {[%emt 0:00:24]} f5 {[%emt 0:00:21]} 93. Bxf5 {[%emt 0:00:35]} Ka1 {[%emt 0:00:40]} 94. Nb3+ {[%emt 0:00:18]} Ka2 {[%emt 0:00:02]} 95. Be4 {[%emt 0:00:22]} Ka3 {[%emt 0:00:02]} 96. Bb1 {[%emt 0:00:06]} Ka4 {[%emt 0:00:04]} 97. Nd4 {[%emt 0:00:27]} Ka5 {[%emt 0:00:01]} 98. Be4 {[%emt 0:00:16]} Kb6 {[%emt 0:00:41]} 99. Ne6 {[%emt 0:00:05]} Kb5 {[%emt 0:00:18]} 100. Kb3 {[%emt 0:00:06]} Ka5 {[%emt 0:00:30]} 101. Bc6 {[%emt 0:00:06]} Kb6 {[%emt 0:00:32]} 102. Bd7 {[%emt 0:00:05]} Ka5 {[%emt 0:00:22]} 103. Kc4 {[%emt 0:00:08]} Kb6 {[%emt 0:00:05]} 104. Kb4 {[%emt 0:00:05]} 1-0

[Event "41st Jacques-Lemans-Open 2022"]
[Site "St. Veit/Glan"]
[Date "2022.07.16"]
[Round "9.19"]
[White "Higatsberger, Michael"]
[Black "Schwab, Lukas"]
[Result "1/2-1/2"]
[ECO "C44"]
[WhiteElo "2021"]
[BlackElo "2166"]
[Annotator "ChessBase"]
[PlyCount "141"]
[EventDate "2022.07.09"]
[EventType "swiss"]
[EventCountry "AUT"]
[SourceTitle "playchess.com"]
[Source "ChessBase"]
[SourceQuality "1"]
[TimeControl "40/5400+30:1800+30"]

1. e4 {[%emt 0:00:03]} e5 {[%emt 0:00:06]} 2. Nf3 {[%emt 0:00:06]} Nc6 {[%emt 0:00:03]} 3. d4 {[%emt 0:00:08]} exd4 {[%emt 0:00:05]} 4. Nxd4 {[%emt 0:00:06]} Bb4+ {[%emt 0:00:23]} 5. c3 {[%emt 0:01:31]} Bc5 {[%emt 0:00:04]} 6. Be3 {[%emt 0:00:17]} Bb6 {[%emt 0:00:04]} 7. Nf5 {[%emt 0:00:53]} g6 {[%emt 0:02:49]} 8. Bxb6 {[%emt 0:00:27]} axb6 {[%emt 0:00:48]} 9. Ne3 {[%emt 0:00:16]} Nf6 {[%emt 0:01:30]} 10. f3 {[%emt 0:01:08]} O-O {[%emt 0:02:31]} 11. c4 {[%emt 0:00:52]} d5 {[%emt 0:02:59]} 12. cxd5 {[%emt 0:02:29]} Nxe4 {[%emt 0:01:27]} 13. fxe4 {[%emt 0:00:45]} Qh4+ {[%emt 0:00:49]} 14. Kd2 {[%emt 0:01:00]} Qxe4 {[%emt 0:06:35]} 15. Bd3 {[%emt 0:01:42]} Qb4+ {[%emt 0:03:14]} 16. Nc3 {[%emt 0:17:34]} Ne5 {[%emt 0:10:03]} 17. Qb3 {[%emt 0:06:28]} Qh4 {[%emt 0:08:38]} 18. Rae1 {[%emt 0:08:39]} Re8 {[%emt 0:01:11]} 19. Rhf1 {[%emt 0:06:13]} Bd7 {[%emt 0:08:17]} 20. Re2 {[%emt 0:12:17]} Qd4 {[%emt 0:04:49]} 21. Ncd1 {[%emt 0:08:53]} Qxd3+ {[%emt 0:03:17]} 22. Qxd3 {[%emt 0:00:18]} Nxd3 {[%emt 0:00:02]} 23. Kxd3 {[%emt 0:00:38]} Bb5+ {[%emt 0:00:05]} 24. Kd2 {[%emt 0:00:06]} Rxa2 {[%emt 0:07:02]} 25. Rfe1 {[%emt 0:02:38]} Bxe2 {[%emt 0:01:52]} 26. Rxe2 {[%emt 0:00:05]} Kf8 {[%emt 0:07:36]} 27. Kc2 {[%emt 0:01:10]} Ra4 {[%emt 0:02:06]} 28. Rf2 {[%emt 0:02:04]} Rae4 {[%emt 0:04:06]} 29. Kd3 {[%emt 0:00:40]} Kg7 {[%emt 0:00:40]} 30. Rc2 {[%emt 0:00:36]} R4e7 {[%emt 0:00:33]} 31. g3 {[%emt 0:04:13]} f5 {[%emt 0:02:32]} 32. Rf2 {[%emt 0:01:59]} Re5 {[%emt 0:04:05]} 33. Rc2 {[%emt 0:02:33]} R5e7 {[%emt 0:02:26]} 34. Rf2 {[%emt 0:00:08]} c6 {[%emt 0:03:20]} 35. Rc2 {[%emt 0:05:29]} Rd8 {[%emt 0:01:24]} 36. Nc3 {[%emt 0:02:36]} Kf6 {[%emt 0:02:41]} 37. Rf2 {[%emt 0:00:22]} Kg7 {[%emt 0:03:41]} 38. b4 {[%emt 0:02:20]} b5 {[%emt 0:01:08]} 39. Ra2 {[%emt 0:01:08]} Rde8 {[%emt 0:00:53]} 40. Ned1 {[%emt 0:00:42]} Kf6 {[%emt 0:00:47]} 41. Kd4 {[%emt 0:33:23]} Re5 {[%emt 0:07:51]} 42. Kc5 {[%emt 0:00:00]} cxd5 {[%emt 0:02:45]} 43. Kd4 {[%emt 0:00:00]} Rc8 {[%emt 0:01:26]} 44. Nb2 {[%emt 0:00:00]} Rxc3 {[%emt 0:10:33]} 45. Kxc3 {[%emt 0:00:00]} Re2 {[%emt 0:00:02]} 46. Ra5 {[%emt 0:00:00]} d4+ {[%emt 0:00:44]} 47. Kb3 {[%emt 0:00:00]} Rxh2 {[%emt 0:00:04]} 48. Rxb5 {[%emt 0:00:00]} Rg2 {[%emt 0:00:21]} 49. Rxb7 {[%emt 0:00:00]} h5 {[%emt 0:00:18]} 50. b5 {[%emt 0:00:00]} Rxg3+ {[%emt 0:00:14]} 51. Kc4 {[%emt 0:00:00]} h4 {[%emt 0:00:23]} 52. b6 {[%emt 0:00:00]} Rc3+ {[%emt 0:01:20]} 53. Kxd4 {[%emt 0:00:00]} Rb3 {[%emt 0:00:00]} 54. Nd3 {[%emt 0:00:00]} h3 {[%emt 0:00:19]} 55. Rh7 {[%emt 0:00:00]} Rxb6 {[%emt 0:00:20]} 56. Rxh3 {[%emt 0:00:00]} Ra6 {[%emt 0:00:18]} 57. Ke3 {[%emt 0:00:00]} Ra4 {[%emt 0:00:32]} 58. Rh1 {[%emt 0:00:00]} Ra3 {[%emt 0:01:18]} 59. Rb1 {[%emt 0:00:00]} Kg5 {[%emt 0:00:32]} 60. Rg1+ {[%emt 0:00:00]} Kf6 {[%emt 0:00:10]} 61. Rb1 {[%emt 0:00:00]} Ra6 {[%emt 0:00:17]} 62. Rh1 {[%emt 0:00:00]} Re6+ {[%emt 0:00:11]} 63. Kf3 {[%emt 0:00:00]} Re4 {[%emt 0:00:48]} 64. Nf4 {[%emt 0:00:25]} Ra4 {[%emt 0:00:42]} 65. Nxg6 {[%emt 0:01:29]} Kxg6 {[%emt 0:01:12]} 66. Rg1+ {[%emt 0:00:08]} Kf6 {[%emt 0:00:01]} 67. Rg8 {[%emt 0:00:09]} Re4 {[%emt 0:00:18]} 68. Rf8+ {[%emt 0:00:14]} Kg6 {[%emt 0:00:10]} 69. Rg8+ {[%emt 0:00:12]} Kf7 {[%emt 0:00:05]} 70. Ra8 {[%emt 0:00:07]} Rb4 {[%emt 0:00:25]} 71. Ra6 {[%emt 0:00:08]} 1/2-1/2

[Event "41st Jacques-Lemans-Open 2022"]
[Site "St. Veit/Glan"]
[Date "2022.07.16"]
[Round "9.20"]
[White "Fuchs, Patrick"]
[Black "Sucher, Johannes"]
[Result "1-0"]
[ECO "B02"]
[WhiteElo "1990"]
[BlackElo "2164"]
[Annotator "ChessBase"]
[PlyCount "53"]
[EventDate "2022.07.09"]
[EventType "swiss"]
[EventCountry "AUT"]
[SourceTitle "playchess.com"]
[Source "ChessBase"]
[SourceQuality "1"]
[TimeControl "40/5400+30:1800+30"]

1. e4 {[%emt 0:00:03]} Nf6 {[%emt 0:04:10]} 2. e5 {[%emt 0:01:23]} Ng8 {[%emt 0:00:05]} 3. d4 {[%emt 0:00:11]} d6 {[%emt 0:00:05]} 4. Nf3 {[%emt 0:00:15]} Bf5 {[%emt 0:00:26]} 5. Nh4 {[%emt 0:05:48]} e6 {[%emt 0:06:48]} 6. Nxf5 {[%emt 0:01:38]} exf5 {[%emt 0:00:06]} 7. Qf3 {[%emt 0:01:06]} Qc8 {[%emt 0:22:58]} 8. Bc4 {[%emt 0:14:11]} c6 {[%emt 0:05:18]} 9. O-O {[%emt 0:09:49]} d5 {[%emt 0:02:00]} 10. Bb3 {[%emt 0:11:08]} Qe6 {[%emt 0:03:20]} 11. Nd2 {[%emt 0:17:48]} Nd7 {[%emt 0:03:33]} 12. c4 {[%emt 0:00:14]} Ne7 {[%emt 0:01:18]} 13. a4 {[%emt 0:00:38]} Nb6 {[%emt 0:08:27]} 14. cxd5 {[%emt 0:03:34]} Nbxd5 {[%emt 0:00:52]} 15. Nc4 {[%emt 0:00:43]} Ng6 {[%emt 0:01:14]} 16. Ne3 {[%emt 0:02:20]} Nh4 {[%emt 0:12:01]} 17. Qh5 {[%emt 0:02:17]} Be7 {[%emt 0:01:22]} 18. g3 {[%emt 0:00:02]} g6 {[%emt 0:14:28]} 19. Qd1 {[%emt 0:01:44]} g5 {[%emt 0:09:06]} 20. gxh4 {[%emt 0:01:27]} gxh4 {[%emt 0:00:36]} 21. Bxd5 {[%emt 0:00:02]} cxd5 {[%emt 0:00:30]} 22. Qf3 {[%emt 0:00:01]} f4 {[%emt 0:02:09]} 23. Qxf4 {[%emt 0:01:08]} Rg8+ {[%emt 0:00:21]} 24. Kh1 {[%emt 0:00:02]} Bg5 {[%emt 0:00:40]} 25. Qf5 {[%emt 0:00:28]} Qa6 {[%emt 0:00:14]} 26. Rg1 {[%emt 0:00:41]} h6 {[%emt 0:00:52]} 27. f4 1-0

[Event "41st Jacques-Lemans-Open 2022"]
[Site "St. Veit/Glan"]
[Date "2022.07.16"]
[Round "9.21"]
[White "Ernst, Robert"]
[Black "Besner, Bernhard"]
[Result "1/2-1/2"]
[ECO "D32"]
[WhiteElo "2001"]
[BlackElo "2164"]
[Annotator "ChessBase"]
[PlyCount "34"]
[EventDate "2022.07.09"]
[EventType "swiss"]
[EventCountry "AUT"]
[SourceTitle "playchess.com"]
[Source "ChessBase"]
[SourceQuality "1"]
[TimeControl "40/5400+30:1800+30"]

1. d4 {[%emt 0:00:16]} d5 {[%emt 0:00:08]} 2. c4 {[%emt 0:00:08]} e6 {[%emt 0:00:15]} 3. Nc3 {[%emt 0:00:13]} c5 {[%emt 0:00:12]} 4. cxd5 {[%emt 0:00:12]} cxd4 {[%emt 0:00:19]} 5. Qa4+ {[%emt 0:00:39]} Bd7 {[%emt 0:00:16]} 6. Qxd4 {[%emt 0:00:10]} exd5 {[%emt 0:00:12]} 7. Qxd5 {[%emt 0:16:13]} Nf6 {[%emt 0:00:15]} 8. Qd1 {[%emt 0:01:17]} Bc5 {[%emt 0:01:45]} 9. Nf3 {[%emt 0:02:01]} O-O {[%emt 0:01:10]} 10. e3 {[%emt 0:01:50]} Qe7 {[%emt 0:02:05]} 11. Bd3 {[%emt 0:04:38]} Rd8 {[%emt 0:00:48]} 12. Qc2 {[%emt 0:03:20]} Nc6 {[%emt 0:00:37]} 13. a3 {[%emt 0:00:19]} Bg4 {[%emt 0:01:19]} 14. Ne4 {[%emt 0:04:46]} Rxd3 {[%emt 0:06:16]} 15. Nxf6+ {[%emt 0:01:36]} Qxf6 {[%emt 0:00:35]} 16. Qxd3 {[%emt 0:00:10]} Rd8 {[%emt 0:02:54]} 17. Qe4 {[%emt 0:14:43]} Ne5 1/2-1/2

[Event "41st Jacques-Lemans-Open 2022"]
[Site "St. Veit/Glan"]
[Date "2022.07.16"]
[Round "9.22"]
[White "Kienboeck, Benjamin"]
[Black "Hng, Mei-En Emmanuelle"]
[Result "1/2-1/2"]
[ECO "B07"]
[WhiteElo "2151"]
[BlackElo "1997"]
[Annotator "ChessBase"]
[PlyCount "92"]
[EventDate "2022.07.09"]
[EventType "swiss"]
[EventCountry "AUT"]
[SourceTitle "playchess.com"]
[Source "ChessBase"]
[SourceQuality "1"]
[TimeControl "40/5400+30:1800+30"]

1. e4 {[%emt 0:00:03]} d6 {[%emt 0:00:10]} 2. d4 {[%emt 0:00:08]} Nf6 {[%emt 0:00:09]} 3. Nc3 {[%emt 0:00:08]} g6 {[%emt 0:00:06]} 4. Be3 {[%emt 0:00:08]} Bg7 {[%emt 0:00:12]} 5. Qd2 {[%emt 0:00:11]} a6 {[%emt 0:00:26]} 6. O-O-O {[%emt 0:00:43]} b5 {[%emt 0:00:32]} 7. f3 {[%emt 0:00:28]} b4 {[%emt 0:01:04]} 8. Nce2 {[%emt 0:00:43]} a5 {[%emt 0:00:53]} 9. Kb1 {[%emt 0:01:39]} Nbd7 {[%emt 0:11:16]} 10. h4 {[%emt 0:02:15]} h5 {[%emt 0:01:39]} 11. Nh3 {[%emt 0:01:38]} Nb6 {[%emt 0:08:44]} 12. Nef4 {[%emt 0:04:10]} Bxh3 {[%emt 0:11:26]} 13. Nxh3 {[%emt 0:03:43]} O-O {[%emt 0:13:29]} 14. Bh6 {[%emt 0:07:31]} c5 {[%emt 0:03:00]} 15. Bxg7 {[%emt 0:10:34]} Kxg7 {[%emt 0:00:01]} 16. Qe1 {[%emt 0:00:16]} cxd4 {[%emt 0:01:41]} 17. Rxd4 {[%emt 0:00:51]} Qc7 {[%emt 0:00:52]} 18. Qd1 {[%emt 0:01:14]} Qc5 {[%emt 0:05:39]} 19. g3 {[%emt 0:08:03]} a4 {[%emt 0:10:31]} 20. Qd2 {[%emt 0:06:16]} b3 {[%emt 0:04:21]} 21. cxb3 {[%emt 0:00:54]} axb3 {[%emt 0:00:01]} 22. a3 {[%emt 0:01:23]} Rfc8 {[%emt 0:03:42]} 23. Rb4 {[%emt 0:03:15]} Ra4 {[%emt 0:03:05]} 24. Rxb3 {[%emt 0:23:04]} Rd4 {[%emt 0:01:51]} 25. Bd3 {[%emt 0:01:37]} Nc4 {[%emt 0:03:53]} 26. Qc2 {[%emt 0:03:55]} Qa5 {[%emt 0:04:14]} 27. Rd1 {[%emt 0:06:34]} Rc5 {[%emt 0:02:21]} 28. Bxc4 {[%emt 0:04:33]} Rdxc4 {[%emt 0:00:16]} 29. Qd2 {[%emt 0:00:39]} Qa4 {[%emt 0:00:42]} 30. Ka2 {[%emt 0:03:55]} Nd7 {[%emt 0:02:40]} 31. Nf4 {[%emt 0:01:09]} Ne5 {[%emt 0:01:49]} 32. Nd3 {[%emt 0:00:12]} Rd4 {[%emt 0:03:50]} 33. Nxc5 {[%emt 0:01:28]} dxc5 {[%emt 0:00:00]} 34. Qf4 {[%emt 0:01:33]} Rxd1 {[%emt 0:02:20]} 35. Qxe5+ {[%emt 0:00:01]} Kh7 {[%emt 0:00:11]} 36. Qxe7 {[%emt 0:00:56]} Qc4 {[%emt 0:00:14]} 37. Qf6 {[%emt 0:01:21]} Rd3 {[%emt 0:00:20]} 38. Qb6 {[%emt 0:00:40]} Rxf3 {[%emt 0:00:44]} 39. Qb5 {[%emt 0:00:14]} Qe6 {[%emt 0:00:04]} 40. a4 {[%emt 0:00:54]} Rxg3 {[%emt 0:00:37]} 41. a5 {[%emt 0:04:25]} g5 {[%emt 0:08:01]} 42. hxg5 {[%emt 0:12:16]} h4 {[%emt 0:00:48]} 43. Qb6 {[%emt 0:01:12]} Qc4 {[%emt 0:12:24]} 44. Qb5 {[%emt 0:10:31]} Qe6 {[%emt 0:00:24]} 45. Qb6 {[%emt 0:00:31]} Qc4 {[%emt 0:00:08]} 46. Qb5 {[%emt 0:00:33]} Qe6 1/2-1/2

[Event "41st Jacques-Lemans-Open 2022"]
[Site "St. Veit/Glan"]
[Date "2022.07.16"]
[Round "9.23"]
[White "Bajorski, Marius"]
[Black "Hofstadler, Mario"]
[Result "1/2-1/2"]
[ECO "B13"]
[WhiteElo "1870"]
[BlackElo "2123"]
[Annotator "ChessBase"]
[PlyCount "30"]
[EventDate "2022.07.09"]
[EventType "swiss"]
[EventCountry "AUT"]
[SourceTitle "playchess.com"]
[Source "ChessBase"]
[SourceQuality "1"]
[TimeControl "40/5400+30:1800+30"]

1. e4 {[%emt 0:00:02]} c6 {[%emt 0:00:11]} 2. d4 {[%emt 0:00:04]} d5 {[%emt 0:00:05]} 3. exd5 {[%emt 0:00:04]} cxd5 {[%emt 0:00:13]} 4. Bd3 {[%emt 0:00:05]} Nc6 {[%emt 0:00:54]} 5. c3 {[%emt 0:00:10]} Nf6 {[%emt 0:00:46]} 6. Bf4 {[%emt 0:00:31]} Bg4 {[%emt 0:01:49]} 7. Qb3 {[%emt 0:00:21]} e5 {[%emt 0:09:30]} 8. Qxb7 {[%emt 0:05:51]} exf4 {[%emt 0:00:46]} 9. Bb5 {[%emt 0:06:06]} Rb8 {[%emt 0:18:55]} 10. Bxc6+ {[%emt 0:01:44]} Nd7 {[%emt 0:15:43]} 11. Bxd7+ {[%emt 0:05:03]} Bxd7 {[%emt 0:00:02]} 12. Qxd5 {[%emt 0:00:23]} Rxb2 {[%emt 0:11:17]} 13. Nd2 {[%emt 0:04:25]} Be7 {[%emt 0:06:55]} 14. Ngf3 {[%emt 0:12:47]} Qc7 {[%emt 0:01:46]} 15. O-O {[%emt 0:06:27]} O-O {[%emt 0:01:59]} 1/2-1/2

[Event "41st Jacques-Lemans-Open 2022"]
[Site "St. Veit/Glan"]
[Date "2022.07.16"]
[Round "9.24"]
[White "Zoernpfenning, Siegfried"]
[Black "Ebner, Johann"]
[Result "1-0"]
[ECO "A40"]
[WhiteElo "2114"]
[BlackElo "1907"]
[Annotator "ChessBase"]
[PlyCount "27"]
[EventDate "2022.07.09"]
[EventType "swiss"]
[EventCountry "AUT"]
[SourceTitle "playchess.com"]
[Source "ChessBase"]
[SourceQuality "1"]
[TimeControl "40/5400+30:1800+30"]

1. d4 {[%emt 0:00:03]} e6 {[%emt 0:07:17]} 2. Bf4 {[%emt 0:00:21]} Nf6 {[%emt 0:00:08]} 3. e3 {[%emt 0:00:25]} c5 {[%emt 0:00:07]} 4. Nd2 {[%emt 0:04:02]} b6 {[%emt 0:02:35]} 5. Nc4 {[%emt 0:03:47]} Bb7 {[%emt 0:12:15]} 6. Nf3 {[%emt 0:13:04]} d5 {[%emt 0:06:42]} 7. Nce5 {[%emt 0:00:48]} Be7 {[%emt 0:02:33]} 8. Bb5+ {[%emt 0:00:23]} Kf8 {[%emt 0:01:59]} 9. Ng5 {[%emt 0:03:37]} a6 {[%emt 0:03:45]} 10. Bd3 {[%emt 0:03:02]} c4 {[%emt 0:01:07]} 11. Be2 {[%emt 0:06:56]} Rg8 {[%emt 0:03:21]} 12. Nexf7 {[%emt 0:00:52]} Qd7 {[%emt 0:06:47]} 13. Ne5 {[%emt 0:02:37]} Qc8 {[%emt 0:00:35]} 14. Bg4 {[%emt 0:00:12]} 1-0

[Event "41st Jacques-Lemans-Open 2022"]
[Site "St. Veit/Glan"]
[Date "2022.07.16"]
[Round "9.25"]
[White "Bethke, Robert"]
[Black "Miazhynski, Michael"]
[Result "1-0"]
[ECO "D94"]
[WhiteElo "2070"]
[BlackElo "1994"]
[Annotator "ChessBase"]
[PlyCount "65"]
[EventDate "2022.07.09"]
[EventType "swiss"]
[EventCountry "AUT"]
[SourceTitle "playchess.com"]
[Source "ChessBase"]
[SourceQuality "1"]
[TimeControl "40/5400+30:1800+30"]

1. Nf3 {[%emt 0:00:01]} Nf6 {[%emt 0:00:07]} 2. c4 {[%emt 0:00:03]} g6 {[%emt 0:00:27]} 3. Nc3 {[%emt 0:00:05]} d5 {[%emt 0:00:42]} 4. d4 {[%emt 0:00:26]} Bg7 {[%emt 0:00:10]} 5. e3 {[%emt 0:01:29]} O-O {[%emt 0:00:14]} 6. cxd5 {[%emt 0:00:14]} Nxd5 {[%emt 0:00:07]} 7. Be2 {[%emt 0:00:05]} Nc6 {[%emt 0:06:08]} 8. O-O {[%emt 0:00:19]} Nb6 {[%emt 0:03:13]} 9. b3 {[%emt 0:00:22]} e5 {[%emt 0:00:41]} 10. dxe5 {[%emt 0:00:07]} Nxe5 {[%emt 0:00:58]} 11. Bb2 {[%emt 0:00:07]} c6 {[%emt 0:02:58]} 12. Qc2 {[%emt 0:01:37]} Qe7 {[%emt 0:02:43]} 13. Rfd1 {[%emt 0:04:08]} Be6 {[%emt 0:20:14]} 14. Nd4 {[%emt 0:01:00]} Rad8 {[%emt 0:00:29]} 15. a4 {[%emt 0:03:26]} Qh4 {[%emt 0:12:26]} 16. Ba3 {[%emt 0:08:13]} Rfe8 {[%emt 0:17:09]} 17. Nxe6 {[%emt 0:00:59]} fxe6 {[%emt 0:00:38]} 18. Rxd8 {[%emt 0:11:55]} Rxd8 {[%emt 0:01:15]} 19. Rd1 {[%emt 0:00:10]} Rxd1+ {[%emt 0:03:28]} 20. Nxd1 {[%emt 0:03:16]} Nd5 {[%emt 0:00:18]} 21. Qc5 {[%emt 0:01:01]} b6 {[%emt 0:06:03]} 22. Qd6 {[%emt 0:00:24]} Kf7 {[%emt 0:00:25]} 23. Qb8 {[%emt 0:00:28]} a5 {[%emt 0:02:52]} 24. Bd6 {[%emt 0:06:11]} Qe4 {[%emt 0:04:28]} 25. Qb7+ {[%emt 0:18:02]} Kg8 {[%emt 0:00:18]} 26. Qc8+ {[%emt 0:05:21]} Kf7 {[%emt 0:00:06]} 27. f4 {[%emt 0:09:11]} Nxf4 {[%emt 0:05:53]} 28. Qc7+ {[%emt 0:00:28]} Kf6 {[%emt 0:00:07]} 29. Qe7+ {[%emt 0:00:55]} Kf5 {[%emt 0:00:09]} 30. g4+ {[%emt 0:00:04]} Nxg4 {[%emt 0:00:30]} 31. Bxg4+ {[%emt 0:00:05]} Kxg4 {[%emt 0:00:16]} 32. Nf2+ {[%emt 0:00:03]} Kf3 {[%emt 0:00:18]} 33. Nxe4 {[%emt 0:00:07]} 1-0